Workbook

Sheet Sales Channel Analysis
B3: Sales Channel Analysis
B4: For January, 2010
D6: Annual | E6: Annual | F6: % of Total | G6: Avg Units | H6: Avg Dollars
D7: Unit Volume | E7: Dollar Volume | F7: Sales | G7: per Month | H7: per Month
B8: Company Retail Outlets
C9: Freeport | D9: 1,000,000 | E9: $20,000,000 | F9: =IF(AND(SUM(D9),SUM(E9)),SUM(E9)/SUM($E$13),"") -> 18.5% | G9: =IF(SUM(F9),D9/12,"") -> 83,333 | H9: =IF(SUM(G9),+E9/12,"") -> $1,666,667
C10: Fall River | D10: 1,500,000 | E10: 30,000,000 | F10: =IF(AND(SUM(D10),SUM(E10)),SUM(E10)/SUM($E$13),"") -> 27.8% | G10: =IF(SUM(F10),D10/12,"") -> 125,000 | H10: =IF(SUM(G10),+E10/12,"") -> 2,500,000
C11: Orlando | D11: 2,000,000 | E11: 40,000,000 | F11: =IF(AND(SUM(D11),SUM(E11)),SUM(E11)/SUM($E$13),"") -> 37.0% | G11: =IF(SUM(F11),D11/12,"") -> 166,667 | H11: =IF(SUM(G11),+E11/12,"") -> 3,333,333
C12: Baltimore | D12: 900,000 | E12: 18,000,000 | F12: =IF(AND(SUM(D12),SUM(E12)),SUM(E12)/SUM($E$13),"") -> 16.7% | G12: =IF(SUM(F12),D12/12,"") -> 75,000 | H12: =IF(SUM(G12),+E12/12,"") -> 1,500,000
C13: Total | D13: =IF(SUM(D9:D12),SUM(D9:D12),"") -> 5,400,000 | E13: =IF(SUM(E9:E12),SUM(E9:E12),"") -> $108,000,000 | F13: =IF(AND(SUM(D13),SUM(E13)),E13/$E$48,"") -> 15.8% | G13: =IF(SUM(G9:G12),SUM(G9:G12),"") -> 450,000 | H13: =IF(SUM(H9:H12),SUM(H9:H12),"") -> $9,000,000
B14: Independent Retail Outlets
C15: North Conway | D15: 1,100,000 | E15: $21,000,000 | F15: =IF(AND(SUM(D15),SUM(E15)),SUM(E15)/SUM($E$19),"") -> 19.3% | G15: =IF(SUM(F15),D15/12,"") -> 91,667 | H15: =IF(SUM(G15),+E15/12,"") -> $1,750,000
C16: Nashua | D16: 1,500,000 | E16: 30,000,000 | F16: =IF(AND(SUM(D16),SUM(E16)),SUM(E16)/SUM($E$19),"") -> 27.5% | G16: =IF(SUM(F16),D16/12,"") -> 125,000 | H16: =IF(SUM(G16),+E16/12,"") -> 2,500,000
C17: Washington, DC | D17: 2,000,000 | E17: 40,000,000 | F17: =IF(AND(SUM(D17),SUM(E17)),SUM(E17)/SUM($E$19),"") -> 36.7% | G17: =IF(SUM(F17),D17/12,"") -> 166,667 | H17: =IF(SUM(G17),+E17/12,"") -> 3,333,333
C18: New Bedford | D18: 900,000 | E18: 18,000,000 | F18: =IF(AND(SUM(D18),SUM(E18)),SUM(E18)/SUM($E$19),"") -> 16.5% | G18: =IF(SUM(F18),D18/12,"") -> 75,000 | H18: =IF(SUM(G18),+E18/12,"") -> 1,500,000
C19: Total | D19: =IF(SUM(D15:D18),SUM(D15:D18),"") -> 5,500,000 | E19: =IF(SUM(E15:E18),SUM(E15:E18),"") -> $109,000,000 | F19: =IF(AND(SUM(D19),SUM(E19)),E19/$E$48,"") -> 16.0% | G19: =IF(SUM(G15:G18),SUM(G15:G18),"") -> 458,333 | H19: =IF(SUM(H15:H18),SUM(H15:H18),"") -> $9,083,333
B20: Salaried Sales Force
C21: Northeast | D21: 1,100,000 | E21: $21,000,000 | F21: =IF(AND(SUM(D21),SUM(E21)),SUM(E21)/SUM($E$25),"") -> 19.3% | G21: =IF(SUM(F21),D21/12,"") -> 91,667 | H21: =IF(SUM(G21),+E21/12,"") -> $1,750,000
C22: Mid-Atlantic | D22: 1,500,000 | E22: 30,000,000 | F22: =IF(AND(SUM(D22),SUM(E22)),SUM(E22)/SUM($E$25),"") -> 27.5% | G22: =IF(SUM(F22),D22/12,"") -> 125,000 | H22: =IF(SUM(G22),+E22/12,"") -> 2,500,000
C23: Southeast | D23: 2,000,000 | E23: 40,000,000 | F23: =IF(AND(SUM(D23),SUM(E23)),SUM(E23)/SUM($E$25),"") -> 36.7% | G23: =IF(SUM(F23),D23/12,"") -> 166,667 | H23: =IF(SUM(G23),+E23/12,"") -> 3,333,333
C24: West | D24: 900,000 | E24: 18,000,000 | F24: =IF(AND(SUM(D24),SUM(E24)),SUM(E24)/SUM($E$25),"") -> 16.5% | G24: =IF(SUM(F24),D24/12,"") -> 75,000 | H24: =IF(SUM(G24),+E24/12,"") -> 1,500,000
C25: Total | D25: =IF(SUM(D21:D24),SUM(D21:D24),"") -> 5,500,000 | E25: =IF(SUM(E21:E24),SUM(E21:E24),"") -> $109,000,000 | F25: =IF(AND(SUM(D25),SUM(E25)),E25/$E$48,"") -> 16.0% | G25: =IF(SUM(G21:G24),SUM(G21:G24),"") -> 458,333 | H25: =IF(SUM(H21:H24),SUM(H21:H24),"") -> $9,083,333
B26: Channel 4
C27: Northeast | D27: 1,100,000 | E27: $21,000,000 | F27: =IF(AND(SUM(D27),SUM(E27)),SUM(E27)/SUM($E$31),"") -> 19.3% | G27: =IF(SUM(F27),D27/12,"") -> 91,667 | H27: =IF(SUM(G27),+E27/12,"") -> $1,750,000
C28: Mid-Atlantic | D28: 1,500,000 | E28: 30,000,000 | F28: =IF(AND(SUM(D28),SUM(E28)),SUM(E28)/SUM($E$31),"") -> 27.5% | G28: =IF(SUM(F28),D28/12,"") -> 125,000 | H28: =IF(SUM(G28),+E28/12,"") -> 2,500,000
C29: Southeast | D29: 2,000,000 | E29: 40,000,000 | F29: =IF(AND(SUM(D29),SUM(E29)),SUM(E29)/SUM($E$31),"") -> 36.7% | G29: =IF(SUM(F29),D29/12,"") -> 166,667 | H29: =IF(SUM(G29),+E29/12,"") -> 3,333,333
C30: West | D30: 900,000 | E30: 18,000,000 | F30: =IF(AND(SUM(D30),SUM(E30)),SUM(E30)/SUM($E$31),"") -> 16.5% | G30: =IF(SUM(F30),D30/12,"") -> 75,000 | H30: =IF(SUM(G30),+E30/12,"") -> 1,500,000
C31: Total | D31: =IF(SUM(D27:D30),SUM(D27:D30),"") -> 5,500,000 | E31: =IF(SUM(E27:E30),SUM(E27:E30),"") -> $109,000,000 | F31: =IF(AND(SUM(D31),SUM(E31)),E31/$E$48,"") -> 16.0% | G31: =IF(SUM(G27:G30),SUM(G27:G30),"") -> 458,333 | H31: =IF(SUM(H27:H30),SUM(H27:H30),"") -> $9,083,333
B32: Wholesalers / Company Owned Distributors
C33: New York | D33: 1,100,000 | E33: $21,000,000 | F33: =IF(AND(SUM(D33),SUM(E33)),SUM(E33)/SUM($E$37),"") -> 19.3% | G33: =IF(SUM(F33),D33/12,"") -> 91,667 | H33: =IF(SUM(G33),+E33/12,"") -> $1,750,000
C34: Nashua | D34: 1,500,000 | E34: 30,000,000 | F34: =IF(AND(SUM(D34),SUM(E34)),SUM(E34)/SUM($E$37),"") -> 27.5% | G34: =IF(SUM(F34),D34/12,"") -> 125,000 | H34: =IF(SUM(G34),+E34/12,"") -> 2,500,000
C35: Washington, DC | D35: 2,000,000 | E35: 40,000,000 | F35: =IF(AND(SUM(D35),SUM(E35)),SUM(E35)/SUM($E$37),"") -> 36.7% | G35: =IF(SUM(F35),D35/12,"") -> 166,667 | H35: =IF(SUM(G35),+E35/12,"") -> 3,333,333
C36: Charleston, NC | D36: 900,000 | E36: 18,000,000 | F36: =IF(AND(SUM(D36),SUM(E36)),SUM(E36)/SUM($E$37),"") -> 16.5% | G36: =IF(SUM(F36),D36/12,"") -> 75,000 | H36: =IF(SUM(G36),+E36/12,"") -> 1,500,000
C37: Total | D37: =IF(SUM(D33:D36),SUM(D33:D36),"") -> 5,500,000 | E37: =IF(SUM(E33:E36),SUM(E33:E36),"") -> $109,000,000 | F37: =IF(AND(SUM(D37),SUM(E37)),E37/$E$48,"") -> 16.0% | G37: =IF(SUM(G33:G36),SUM(G33:G36),"") -> 458,333 | H37: =IF(SUM(H33:H36),SUM(H33:H36),"") -> $9,083,333
B38: Wholesalers / Independent Distributors
C39: Springfield | D39: 1,100,000 | E39: $21,000,000 | F39: =IF(AND(SUM(D39),SUM(E39)),SUM(E39)/SUM($E$43),"") -> 19.3% | G39: =IF(SUM(F39),D39/12,"") -> 91,667 | H39: =IF(SUM(G39),+E39/12,"") -> $1,750,000
C40: Cambridge | D40: 1,500,000 | E40: 30,000,000 | F40: =IF(AND(SUM(D40),SUM(E40)),SUM(E40)/SUM($E$43),"") -> 27.5% | G40: =IF(SUM(F40),D40/12,"") -> 125,000 | H40: =IF(SUM(G40),+E40/12,"") -> 2,500,000
C41: Chicago | D41: 2,000,000 | E41: 40,000,000 | F41: =IF(AND(SUM(D41),SUM(E41)),SUM(E41)/SUM($E$43),"") -> 36.7% | G41: =IF(SUM(F41),D41/12,"") -> 166,667 | H41: =IF(SUM(G41),+E41/12,"") -> 3,333,333
C42: San Francisco | D42: 900,000 | E42: 18,000,000 | F42: =IF(AND(SUM(D42),SUM(E42)),SUM(E42)/SUM($E$43),"") -> 16.5% | G42: =IF(SUM(F42),D42/12,"") -> 75,000 | H42: =IF(SUM(G42),+E42/12,"") -> 1,500,000
C43: Total | D43: =IF(SUM(D39:D42),SUM(D39:D42),"") -> 5,500,000 | E43: =IF(SUM(E39:E42),SUM(E39:E42),"") -> $109,000,000 | F43: =IF(AND(SUM(D43),SUM(E43)),E43/$E$48,"") -> 16.0% | G43: =IF(SUM(G39:G42),SUM(G39:G42),"") -> 458,333 | H43: =IF(SUM(H39:H42),SUM(H39:H42),"") -> $9,083,333
B44: Other
C45: On-Line / Mail Order | D45: 1,500,000 | E45: $30,000,000 | F45: =IF(AND(SUM(D45),SUM(E45)),SUM(E45)/SUM($E$47),"") -> 100.0% | G45: =IF(SUM(F45),D45/12,"") -> 125,000 | H45: =IF(SUM(G45),+E45/12,"") -> $2,500,000
F46: =IF(AND(SUM(D46),SUM(E46)),SUM(E46)/SUM($E$47),"") ->  | G46: =IF(SUM(F46),D46/12,"") ->  | H46: =IF(SUM(G46),+E46/12,"") -> 
C47: Total | D47: =IF(SUM(D45:D46),SUM(D45:D46),"") -> 1,500,000 | E47: =IF(SUM(E45:E46),SUM(E45:E46),"") -> $30,000,000 | F47: =IF(SUM(F45:F46),SUM(F45:F46),"") -> 100.0% | G47: =IF(SUM(G45:G46),SUM(G45:G46),"") -> 125,000 | H47: =IF(SUM(H45:H46),SUM(H45:H46),"") -> $2,500,000
B48: Totals for all Channels | D48: =IF(SUM(D13,D19,D25,D31,D37,D43,D47),SUM(D13,D19,D25,D31,D37,D43,D47),"") -> 34,400,000 | E48: =IF(SUM(E13,E19,E25,E31,E37,E43,E47),SUM(E13,E19,E25,E31,E37,E43,E47),"") -> $683,000,000 | F48: =IF(AND(SUM(D48:E48),SUM(E48)),SUM(E48)/SUM(E48),"") -> 100.0% | G48: =IF(SUM(F48),D48/12,"") -> 2,866,667 | H48: =IF(SUM(G48),+E48/12,"") -> $56,916,667
